Cogmind - Beta 16.1 @@@ ROGUE MODE // 2026.04.23 @ 00:12:25 Player: Shimejimeji Result: Core destroyed Performance ------------- Evolutions (0) 0 Regions Visited (1) 200 Robots Destroyed (12) 60 Value Destroyed (167) 167 Prototype IDs (1) 20 Alien Tech Used (0) 0 Bonus (0) 0 TOTAL SCORE: 447 Bonus ------- None Cogmind --------- Core Integrity 0/250 Matter 188/300 Energy 69/100 System Corruption 45% Temperature Cool (0) Movement Core (400) Ox7 Location -10/Materials Parts ------- > --- POWER (1) -------- Heavy Ion Engine > --- PROPULSION (2) --- (None) > --- UTILITY (2) ------ Medium Storage Unit > --- WEAPON (2) ------- Autogun Autogun > --- INVENTORY (10) --- Heavy Ion Engine Light Treads Light Treads Aluminum Leg Aluminum Leg Seismic Detector Autogun Autogun Mining Laser Peak State ------------ > --- POWER ------------ Heavy Ion Engine > --- PROPULSION ------- Light Treads Light Treads > --- UTILITY ---------- Small Storage Unit Seismic Detector > --- WEAPON ----------- Autogun Autogun > --- INVENTORY -------- Heavy Ion Engine Aluminum Leg Aluminum Leg Autogun Autogun Mining Laser [Rating: 12] Favorites ----------- Power Heavy Ion Engine Engine Heavy Ion Engine Propulsion Light Treads Treads Light Treads Utility Small Storage Unit Device Seismic Detector Storage Small Storage Unit Protection Core Shielding Weapon Autogun Energy Gun Small Laser Ballistic Gun Autogun Build | -11 -10 ------- Run | Yrd Mat Slots Evolved . | . . Power . | . . Propulsion . | . . Utility . | . . Weapon . | . . Parts Attached 12 | 7 5 Power 2 | 1 1 Engine 2 | 1 1 Core . | . . Reactor . | . . Propulsion 2 | 2 . Treads 2 | 2 . Leg . | . . Wheel . | . . Hover . | . . Flight . | . . Utility 4 | 2 2 Device 1 | 1 . Storage 2 | 1 1 Processor . | . . Hackware . | . . Protection 1 | . 1 Artifact . | . . Weapon 4 | 2 2 Energy Gun 1 | 1 . Energy Cannon . | . . Ballistic Gun 3 | 1 2 Ballistic Cannon . | . . Launcher . | . . Special Weapon . | . . Impact Weapon . | . . Slashing Weapon . | . . Piercing Weapon . | . . Special Melee Weapon . | . . Unidentified Prototypes 1 | . 1 Parts Lost 1 | . 1 Power . | . . Propulsion . | . . Utility 1 | . 1 Weapon . | . . Highest Loss Streak 1 | . 1 To Critical Strikes . | . . Average Backups 6 | 2 6 Power . | . 1 Propulsion 2 | 1 2 Utility . | . . Weapon 2 | . 2 Tool/Special . | . . Unused Backups 8 | . 8 Power 2 | . 2 Propulsion 2 | . 2 Utility . | . . Weapon 4 | . 4 Tool/Special . | . . Average Slot Usage (%) 97 | . 97 Engine 14 | . 14 Treads 26 | . 26 Device 4 | . 4 Storage 14 | . 14 Protection 8 | . 8 Ballistic Gun 26 | . 26 Peak Build Rating 12 | 7 12 Average Rating 10 | 5 11 On Entrance 3 | . 7 Avg Prop Armor Cover (%) . | . . Naked Turns . | . . Heaviest Build 25 | 14 25 Greatest Support 40 | 40 40 Greatest Overweight (x) 7 | . 7 Average Overweight (x) . | . . Largest Inventory Capacity 10 | 8 10 Average Capacity 8 | 7 8 Most Carried 9 | 5 9 Average Carried 6 | 2 6 Final Capacity 10 | 8 10 Final Carried 9 | 5 9 Class Distribution -------------------- 100% | Mutant Dominant Class ---------------- Mutant | -10/Materials Resources | -11 -10 ----------- Run | Yrd Mat Matter Collected 545 | 240 305 Remotely . | . . Salvage Created 431 | 126 305 Parts 28 | 6 22 Haulers Intercepted . | . . Recyclers Shooed 1 | . 1 Parts Field Recycled . | . . Retrieved Matter . | . . Parts Self-Destructed . | . . Prevented . | . . Parts Restored . | . . Kills | -11 -10 ------- Run | Yrd Mat Combat Hostiles Destroyed 8 | . 8 Guns 8 | . 8 Classes Destroyed 4 | 2 2 Tunneler 2 | 2 . Recycler 2 | 1 1 Swarmer 6 | . 6 Grunt 2 | . 2 Best Kill Streak 4 | 2 4 Combat Bots Only 3 | . 3 Max Kills in Single Turn 2 | 1 2 Gunslinging 1 | . 1 Exploded . | . . Melee . | . . Uniques/NPCs Destroyed . | . . Combat | -11 -10 -------- Run | Yrd Mat Hostile Shots Fired 55 | . 55 Missed 10 | . 10 Hits 45 | . 45 Projectile 45 | . 45 Critical Strikes 2 | . 2 Damage Taken 748 | . 748 Core 257 | . 257 Absorbed by Shields . | . . Redirected to Shielding 39 | . 39 Core Remaining (%) 100 | 100 . Volleys Fired 47 | 10 37 Largest 2 | 2 2 Hottest 60 | 60 46 Shots Fired 94 | 20 74 Gun 94 | 20 74 Cannon . | . . Launcher . | . . Special . | . . Kinetic 84 | 10 74 Thermal 10 | 10 . Explosive . | . . Electromagnetic . | . . Robot Hit Streak 19 | 5 19 Robot Miss Streak 4 | 3 4 Penetration Max . | . . Secondary Targets 1 | . 1 Max Gunslinging Chain 1 | . 1 Shots Hit Robots 61 | 12 49 Core Hits 17 | 3 14 Critical Kills . | . . Critical Parts Destroyed . | . . Critical Strikes . | . . Melee Attacks . | . . Impact . | . . Slashing . | . . Piercing . | . . Sneak Attacks . | . . Combat Hostiles . | . . Follow-up Attacks . | . . Damage Inflicted 934 | 145 789 Guns 860 | 145 715 Cannons . | . . Explosions . | . . Melee . | . . Ramming 74 | . 74 Kinetic 791 | 76 715 Thermal 69 | 69 . Explosive . | . . Electromagnetic . | . . Impact . | . . Slashing . | . . Piercing . | . . Highest Corruption 45 | . 45 Average Corruption 24 | . 24 Corruption Purged . | . . Corruption Blocked . | . . Effects 12 | . 12 Message Errors 4 | . 4 Matter Fused 4 | . 4 Energy Discharges 1 | . 1 Data Loss (major) 1 | . 1 Alerts 2 | . 2 Overload Shots . | . . Overflow Damage . | . . Projectiles . | . . Explosions . | . . Melee . | . . Knockbacks . | . . Impact . | . . Kinetic . | . . Secondary . | . . Self-Inflicted Damage 68 | . 68 Shots . | . . Rammed 3 | . 3 Targets Rammed 4 | . 4 Kicked . | . . Crushed 1 | . 1 Highest Temperature 73 | . 73 Average Temperature 24 | . 24 Received Heat Transfer 132 | . 132 Siege Activations . | . . Martial Activations . | . . Shielding Activations . | . . Robots Disrupted . | . . Combat Hostiles . | . . Robots Corrupted . | . . Combat Hostiles . | . . Parts Fried . | . . Impact Corruptions . | . . Robots Melted . | . . Combat Hostiles . | . . Parts Melted 1 | 1 . Heat Transferred 150 | 150 . Parts Sabotaged . | . . Parts Stolen . | . . Parts Stripped . | . . Power Chain Reactions . | . . Alert | -11 -10 ------- Run | Yrd Mat Maximum Alert Level . | . . Low Security (%) 100 | 100 100 Level 1 . | . . Level 2 . | . . Level 3 . | . . Level 4 . | . . Level 5 . | . . High Security . | . . Max Security . | . . Peak Influence 115 | 10 115 Initial . | . . Average 29 | . 33 Influence Increases 243 | 15 228 Destroy 0b10 Robot/C 160 | . 160 Destroy 0b10 Robot/NC 30 | 15 15 Destroy Leader 30 | . 30 Successful Hack 8 | . 8 Lose Combat Pursuer 15 | . 15 Influence Decreases 243 | 15 228 Time Decay 233 | 15 218 Lost Part 10 | . 10 Squads Dispatched 1 | . 1 Investigation 1 | . 1 Extermination . | . . Reinforcement . | . . Assault . | . . Garrison . | . . Intercept . | . . Searches Triggered . | . . Construction Impeded . | . . Haulers Reinforced . | . . Active Scanning Responses . | . . Cargo Convoy Interrupts . | . . Stealth | -11 -10 --------- Run | Yrd Mat Distress Signals 1 | . 1 Communications Jammed . | . . Distress Signals . | . . Times Spotted 10 | . 10 Peak Tracking Total 4 | . 4 Tactical Retreats 1 | . 1 Traps | -11 -10 ------- Run | Yrd Mat Traps Triggered 1 | . 1 Indirectly . | . . Trap Hack Attempts . | . . Triggered . | . . Disarmed . | . . Reprogrammed . | . . Reused . | . . Traps Extracted . | . . Installed . | . . Triggered . | . . Machines | -11 -10 ---------- Run | Yrd Mat Machines Disabled . | . . Max in Single Turn . | . . Machines Repaired . | . . Machines Dismantled . | . . Machines Sabotaged . | . . Overloaded Fab Kills . | . . Hacking | -11 -10 --------- Run | Yrd Mat Machines Accessed 4 | . 4 Terminals 3 | . 3 Fabricators . | . . Repair Stations . | . . Recycling Units 1 | . 1 Scanalyzers . | . . Garrison Access . | . . Total Hacks 13 | . 13 Successful 5 | . 5 Failed 8 | . 8 Catastrophic . | . . Database Lockouts . | . . Manual 11 | . 11 Terminals 11 | . 11 Fabricators . | . . Repair Stations . | . . Recycling Units 2 | . 2 Scanalyzers . | . . Garrison Access . | . . Terminal Hacks . | . . Fabricator Hacks . | . . Repair Station Hacks . | . . Recycling Unit Hacks . | . . Scanalyzer . | . . Garrison Access Hacks . | . . Unauthorized Hacks 5 | . 5 Terminals 5 | . 5 Botnet 1 | . 1 Operators 1 | . 1 Skim 3 | . 3 Fabricators . | . . Repair Stations . | . . Recycling Units . | . . Scanalyzers . | . . Garrison Access . | . . Data Cores Recovered . | . . Used . | . . Hacking Detections 4 | . 4 Full Trace Events 1 | . 1 Feedback Events . | . . Feedback Blocked . | . . Robot Schematics Acquired . | . . Robots Built . | . . Authchips . | . . Time . | . . Total Robot Build Rating . | . . Part Schematics Acquired . | . . Parts Built . | . . Authchips . | . . Time . | . . Total Part Build Rating . | . . Part Studies Acquired . | . . Parts Repaired . | . . Time . | . . Parts Recycled . | . . Recycled Matter . | . . Retrieved Matter . | . . Retrieved Components . | . . Parts Scanalyzed . | . . Part Schematics Acquired . | . . Parts Damaged . | . . Bothacking | -11 -10 ------------ Run | Yrd Mat Used RIF Installer . | . . Robots Hacked . | . . Non-combat . | . . Combat . | . . Robot Hacks Applied . | . . Relay Couplers Released . | . . Fabnet Peak Effective % . | . . Robots Rewired . | . . Allies Hacked . | . . Hacks Repelled . | . . Allies | -11 -10 -------- Run | Yrd Mat Total Allies . | . . Largest Group . | . . Highest-Rated Group . | . . Highest-Rated Ally . | . . Total Orders . | . . Ally Attacks . | . . Total Damage . | . . Kills . | . . Allies Corrupted . | . . Allies Melted . | . . Intel | -11 -10 ------- Run | Yrd Mat Active Infowar (turns) 271 | 6 265 Seismic 271 | 6 265 Robot Analysis Total . | . . Derelict Logs Recovered . | . . Drone Launches . | . . Drone Recoveries . | . . Exploration | -11 -10 ------------- Run | Yrd Mat Turns Passed 937 | 117 820 Spaces Moved 310 | 47 263 Core 11 | 2 9 Treads 299 | 45 254 Legs . | . . Wheels . | . . Hover . | . . Flight . | . . Fastest Speed 50 | 50 160 Average Speed 166 | 155 168 Slowest Speed 400 | 160 400 Overloaded Moves . | . . Propulsion Burnouts . | . . Robots Hopped . | . . Potential Cave-ins . | . . Cave-ins Triggered . | . . Exploration Rate (%) 26 | 4 48 Regions Visited 1 Branch Regions . Pre-discovered Areas . | . . Known Exits Taken . | . . Unknown Exits Taken 1 | 1 . Scrap Searched . | . . Spaces Dug . | . . Terrain Destroyed . | . . Melee . | . . Projectile . | . . AOE . | . . Terrain Rammed 59 | . 59 Walls Destroyed . | . . Machines Disabled . | . . Actions | -11 -10 --------- Run | Yrd Mat Total 456 | 68 388 Wait 3 | . 3 Move 309 | 46 263 Hop . | . . Pick Up 9 | 5 4 Fast Attach 9 | 7 2 Attach . | . . Detach 4 | . 4 Swap 3 | . 3 Drop 5 | . 5 Fire 47 | 10 37 Melee . | . . Ram 58 | . 58 Kick . | . . Crush 4 | . 4 Escape Stasis . | . . Rewire 5 | . 5 Trap . | . . Miscellaneous . | . . Route ------- -11/Scrapyard -10/Materials (discovered 2 exits: [*Mat] / [*Min]) History --------- Turn | Location | Event 33 | -11/Scrapyard | Discovered new exit (range 15) 118 | -11/Scrapyard | Entered Materials 251 | -10/Materials | Discovered new exit (range 9) 304 | -10/Materials | Build established: Mutant 525 | -10/Materials | Discovered new exit (range 14) 704 | -10/Materials | System corruption reached 10% 744 | -10/Materials | Core integrity fell below 50% 843 | -10/Materials | System corruption reached 30% 866 | -10/Materials | Core integrity fell below 20% 938 | -10/Materials | Core destroyed Last Messages --------------- 00877_ Slammed into Wall. 00877_ Destabilizing: System corrupted (+2). 00881_ Slammed into Wall. 00885_ System corrupted: IFF burst signal emitted. 00885_ Slammed into Wall. 00885_ Destabilizing: System corrupted (+1). 00885_ Destabilizing: Core damaged (-2). 00889_ Slammed into Wall. 00889_ Destabilizing: Core damaged (-5). 00903_ System corrupted: Matter fused (-6). 00922_ System corrupted: Matter fused (-5). 00930_ Slammed into Wall. 00930_ Destabilizing: System corrupted (+2). 00930_ Destabilizing: Core damaged (-2). 00934_ Slammed into Wall. 00934_ Destabilizing: Core damaged (-12). 00934_ Destabilizing: System corrupted (+1). 00938_ System corrupted: Energy discharge (-31). 00938_ Slammed into Wall. 00938_ Destabilizing: Core damaged (-12). Map ----- +----------------------------------------------------+ | ## #?????????????????????????????????? | | ## #?????????????????????????????????? | | !## #?????????????????????????????????? | | ######## """ #?????????????????????????????????? | | ####### """ #?????????????????????????????????? | | # ^ """ #?????????????????????????????????? | | #^ #?????????????????????????????????? | | + ######????????????????????????????? | | # #???? ???????????????????????? | | !# #???? ???????????????????????? | | # """ """*=""" #???? #??????????????????????? | | "# """ """ =""" #???? #??????????????? ??????? | | "# """ """ =""" #??"" #?????????#####+####???? | | "# ! #??"T #????????? ??? | | # = = #??"" #?######?? ???? | | ## """ """ [ " #??"" ??"|"!""#? T "???? | | ## """ """ T #?? ? "|"!" ## ????? | | """ """ " ####+## ## ?????? | | < ??????? | | < ???????? | | ####### ##### ????????? | | ??????# #???########+## ## #?????????? | | ??????# #??????# [ !#???###### #?????????? | | ??????# #??????# ##########= #?????????? | | ??????# #??????# + #?????????? | | ??????# #??????# ! @##########* #?????????? | | ??????# ##?????# #????????##+##?????????? | | ??????# T#?????# #??????????????????????? | | ??????# ##?????########??????????????????????? | | ??????# #??########??????????????????????????? | | ??????# #??#**!! #??????????????????????????? | | ??????# #??#* !! #??????????????????????????? | | ??????# #??#* #??????????????????????????? | | ####### #### ###############????????????? | | # #????????????? | | # #????????????? | | """# #????????????? | | """# """ ! ###########+##### #????????????? | | """# """ #???????? ??# #????????????? | | ?? # """ #??????#|! # #????????????? | | ?###+## """ #??????#! # #????????????? | | ?# #??????# ! #####????????????? | | ?# [ #??????# #????????????????? | | ?###+####### #??????# """ #????????????????? | | ?? ????##+###??????# """ % #????????????????? | | ?#""" #?? ???????# """ #????????????????? | | ?#""" # #?????# #????????????????? | | ?#""" ! # #?????##???#####????????????????? | | ?#""" # #???????????????????????????????? | | ?# # ! #???????????????????????????????? | +----------------------------------------------------+ Best States ------------- Heat Dissipation 25 Energy Generation 14 Energy Capacity 280 Matter Stores 254 Matter Capacity 300 Sight Range 16 Terrain Scan Density 10 Core Shielding 20 Evasion (%) 40 Recoil Reduction 2 Item Schematics ----------------- None Robot Schematics ------------------ None Fabricated ------------ Nothing Repaired ---------- Nothing Studied --------- None Alien Tech Used ----------------- None Achievements -------------- None Challenges ------------ None Game ------ Seed MetafiberSegregatorHoverbase Manual? 0 Play Time 00:08:40 Cumulative 47.5 hours Start 2026.04.23 @ 00:07:41 End 2026.04.23 @ 00:12:25 Sessions 1 Manual Loads 0 Difficulty Rogue Special Mode None Game No. 30 Rogue 30 Adventurer 0 Explorer 0 Win Type - Total 0 Types 0/0/0/0/0/0/0/0/0/0 Lore% 41 Gallery% 29 Achievement% 27 Wizard Run 0 Options --------- Layout 0 ASCII 0 Keyboard 1 Movement Arrows Keybinds 0 Fullscreen 2 Font 18/SmallcapsGlow Map View 76x50 Zoom Use 0% Tactical HUD 1 Map Filters NONE Filters NONE Steam 1 RUN: eb0eb4e4-82a1-491d-814a-fe299d3dd22b